fUST/lending_fUST_20250719
["ID","MTS","AMOUNT","RATE_DAILY","PERIOD"]
[373171403,1752889843562,-1122.33025397,0.00016883,2]
[373171405,1752889843572,-12128.58238433,0.00016886,2]
[373171406,1752889843584,-460.0,0.00016986,2]
[373171408,1752889843593,-460.0,0.00016986,2]
[373171410,1752889843602,-460.0,0.00016986,2]
[373171412,1752889843614,-465.10768137,0.00016986,2]
[373171414,1752889843624,-460.0,0.00016986,2]
[373171416,1752889843633,-460.0,0.00016986,2]
[373171418,1752889843643,-624.98,0.00016986,2]
[373171420,1752889843655,-460.0,0.00016986,2]
[373171423,1752889843666,-460.0,0.00016986,2]
[373171424,1752889843675,-460.0,0.00016986,2]
[373171427,1752889843685,-470.44713192,0.00016986,2]
[373171428,1752889843695,-460.0,0.00016986,2]
[373171431,1752889843705,-460.0,0.00016986,2]
[373171433,1752889843714,-460.0,0.00016986,2]
[373171434,1752889843724,-460.0,0.00016986,2]
[373171436,1752889843734,-213.07501039,0.00016986,2]
[373171438,1752889843744,-460.0,0.00016986,2]
[373171440,1752889843753,-460.0,0.00016986,2]
[373171443,1752889843763,-460.0,0.00016986,2]
[373171444,1752889843773,-460.0,0.00016986,2]
[373171446,1752889843783,-498.88,0.00016986,2]
[373171449,1752889843793,-466.86147756,0.00016986,2]
[373171450,1752889843802,-460.0,0.00016986,2]
[373171453,1752889843812,-465.16583079,0.00016986,2]
[373171454,1752889843823,-460.0,0.00016986,2]
[373171457,1752889843832,-460.0,0.00016986,2]
[373171459,1752889843843,-460.0,0.00016986,2]
[373171461,1752889843854,-460.0,0.00016986,2]
[373171462,1752889843865,-460.0,0.00016986,2]
[373171464,1752889843875,-598.51548739,0.00016986,2]
[373171466,1752889843887,-469.6631532,0.00016986,2]
[373171468,1752889843897,-460.0,0.00016986,2]
[373171471,1752889843908,-468.42813134,0.00016986,2]
[373171473,1752889843918,-460.0,0.00016986,2]
[373171474,1752889843928,-460.0,0.00016986,2]
[373171476,1752889843937,-460.0,0.00016986,2]
[373171478,1752889843947,-460.0,0.00016986,2]
[373171480,1752889843956,-460.0,0.00016986,2]
[373171482,1752889843966,-460.0,0.00016986,2]
[373171484,1752889843975,-460.0,0.00016986,2]
[373171486,1752889843985,-460.0,0.00016986,2]
[373171488,1752889843994,-460.0,0.00016986,2]
[373171490,1752889844004,-460.0,0.00016986,2]
[373171492,1752889844013,-460.0,0.00016986,2]
[373171495,1752889844026,-460.0,0.00016986,2]
[373171497,1752889844036,-460.0,0.00016986,2]
[373171498,1752889844045,-460.0,0.00016986,2]
[373171500,1752889844054,-460.0,0.00016986,2]
[373171502,1752889844064,-460.0,0.00016986,2]
[373171504,1752889844073,-643.65,0.00016986,2]
[373171506,1752889844083,-460.0,0.00016986,2]
[373171508,1752889844092,-460.0,0.00016986,2]
[373171510,1752889844102,-460.0,0.00016986,2]
[373171512,1752889844111,-460.0,0.00016986,2]
[373171514,1752889844121,-465.63051117,0.00016986,2]
[373171516,1752889844131,-460.0,0.00016986,2]
[373171518,1752889844141,-460.0,0.00016986,2]
[373171521,1752889844156,-460.0,0.00016986,2]
[373171523,1752889844165,-460.0,0.00016986,2]
[373171525,1752889844175,-460.0,0.00016986,2]
[373171526,1752889844184,-460.0,0.00016986,2]
[373171529,1752889844194,-276.78973699,0.00016986,2]
[373171531,1752889844203,-460.0,0.00016986,2]
[373171533,1752889844213,-460.0,0.00016986,2]
[373171535,1752889844222,-460.0,0.00016986,2]
[373171537,1752889844232,-460.0,0.00016986,2]
[373171539,1752889844242,-460.0,0.00016986,2]
[373171541,1752889844252,-1048.66,0.00016986,2]
[373171543,1752889844261,-2112.61,0.00016986,2]
[373171545,1752889844271,-460.0,0.00016986,2]
[373171547,1752889844284,-460.0,0.00016986,2]
[373171549,1752889844293,-460.0,0.00016986,2]
[373171551,1752889844303,-460.0,0.00016986,2]
[373171553,1752889844312,-460.0,0.00016986,2]
[373171555,1752889844321,-460.0,0.00016986,2]
[373171557,1752889844331,-460.0,0.00016986,2]
[373171559,1752889844340,-460.0,0.00016986,2]
[373171561,1752889844350,-1102.5,0.00016986,2]
[373171563,1752889844359,-460.0,0.00016986,2]
[373171564,1752889844368,-460.0,0.00016986,2]
[373171566,1752889844377,-460.0,0.00016986,2]
[373171568,1752889844387,-460.0,0.00016986,2]
[373171570,1752889844396,-471.16920484,0.00016986,2]
[373171572,1752889844407,-514.42,0.00016986,2]
[373171574,1752889844416,-652.43,0.00016986,2]
[373171576,1752889844426,-1428.9,0.00016986,2]
[373171579,1752889844436,-1641.4,0.00016986,2]
[373171580,1752889844447,-460.0,0.00016986,2]
[373171582,1752889844457,-460.0,0.00016986,2]
[373171584,1752889844469,-460.0,0.00016986,2]
[373171586,1752889844479,-460.0,0.00016986,2]
[373171589,1752889844491,-1213.09,0.00016986,2]
[373171590,1752889844500,-460.0,0.00016986,2]
[373171592,1752889844510,-460.0,0.00016986,2]
[373171595,1752889844519,-555.73,0.00016986,2]
[373171596,1752889844529,-460.0,0.00016986,2]
[373171598,1752889844538,-490.02331126,0.00016986,2]
[373171600,1752889844548,-460.0,0.00016986,2]
[373171603,1752889844558,-460.0,0.00016986,2]
[373171605,1752889844567,-460.0,0.00016986,2]
[373171606,1752889844580,-460.0,0.00016986,2]
[373171608,1752889844590,-2991.77,0.00016986,2]
[373171610,1752889844599,-460.0,0.00016986,2]
[373171612,1752889844608,-1987.27,0.00016986,2]
[373171614,1752889844618,-460.0,0.00016986,2]
[373171616,1752889844627,-460.0,0.00016986,2]
[373171621,1752889844666,-460.0,0.00016986,2]
[373171623,1752889844676,-938.91,0.00016986,2]
[373171625,1752889844685,-460.0,0.00016986,2]
[373171627,1752889844694,-460.0,0.00016986,2]
[373171629,1752889844703,-460.0,0.00016986,2]
[373171631,1752889844712,-460.0,0.00016986,2]
[373171633,1752889844722,-1454.48,0.00016986,2]
[373171635,1752889844732,-488.63,0.00016986,2]
[373171637,1752889844741,-460.0,0.00016986,2]
[373171639,1752889844751,-460.0,0.00016986,2]
[373171641,1752889844760,-737.82,0.00016986,2]
[373171643,1752889844770,-460.32,0.00016986,2]
[373171645,1752889844779,-460.0,0.00016986,2]
[373171647,1752889844788,-460.0,0.00016986,2]
[373171649,1752889844796,-460.0,0.00016986,2]
[373171651,1752889844806,-967.13,0.00016986,2]
[373171653,1752889844815,-460.0,0.00016986,2]
[373171655,1752889844825,-3100.36,0.00016986,2]
[373171657,1752889844835,-460.0,0.00016986,2]
[373171659,1752889844844,-467.71374881,0.00016986,2]
[373171661,1752889844854,-460.0,0.00016986,2]
[373171663,1752889844863,-460.0,0.00016986,2]
[373171665,1752889844872,-1316.83,0.00016986,2]
[373171667,1752889844882,-460.0,0.00016986,2]
[373171669,1752889844891,-460.0,0.00016986,2]
[373171671,1752889844901,-460.0,0.00016986,2]
[373171673,1752889844913,-460.0,0.00016986,2]
[373171675,1752889844922,-204.94526416,0.00016986,2]
[373171676,1752889844931,-460.0,0.00016986,2]
[373171677,1752889844940,-460.0,0.00016986,2]
[373171678,1752889844949,-460.0,0.00016986,2]
[373171679,1752889844958,-460.0,0.00016986,2]
[373171680,1752889844967,-460.0,0.00016986,2]
[373171681,1752889844976,-460.0,0.00016986,2]
[373171682,1752889844986,-500.0,0.00017012,2]
[373171684,1752889844995,-501.31515792,0.00017176,2]
[373171686,1752889845005,-500.0,0.00017176,2]
[373171687,1752889845014,-500.0,0.00017183,2]
[373171689,1752889845023,-502.51153415,0.0001719,2]
[373171691,1752889845033,-500.0,0.0001719,2]
[373171693,1752889845042,-500.0,0.00017194,2]
[373171695,1752889845052,-500.0,0.00017194,2]
[373171696,1752889845061,-460.0,0.0001726,2]
[373171697,1752889845070,-460.0,0.0001726,2]
[373171698,1752889845080,-464.59445955,0.0001726,2]
[373171700,1752889845089,-460.0,0.0001726,2]
[373171702,1752889845099,-460.0,0.0001726,2]
[373171704,1752889845108,-624.98,0.0001726,2]
[373171706,1752889845118,-460.0,0.0001726,2]
[373171708,1752889845128,-460.0,0.0001726,2]
[373171710,1752889845138,-460.0,0.0001726,2]
[373171712,1752889845147,-460.0,0.0001726,2]
[373171714,1752889845158,-460.0,0.0001726,2]
[373171716,1752889845168,-460.0,0.0001726,2]
[373171718,1752889845177,-460.0,0.0001726,2]
[373171720,1752889845186,-460.0,0.0001726,2]
[373171722,1752889845195,-460.0,0.0001726,2]
[373171724,1752889845205,-460.0,0.0001726,2]
[373171726,1752889845214,-460.0,0.0001726,2]
[373171728,1752889845223,-498.88,0.0001726,2]
[373171730,1752889845233,-465.87739812,0.0001726,2]
[373171732,1752889845242,-460.0,0.0001726,2]
[373171734,1752889845252,-460.0,0.0001726,2]
[373171736,1752889845261,-460.0,0.0001726,2]
[373171738,1752889845270,-460.0,0.0001726,2]
[373171740,1752889845280,-460.0,0.0001726,2]
[373171742,1752889845289,-460.0,0.0001726,2]
[373171744,1752889845299,-460.0,0.0001726,2]
[373171746,1752889845309,-467.75788874,0.0001726,2]
[373171748,1752889845320,-460.0,0.0001726,2]
[373171750,1752889845329,-460.0,0.0001726,2]
[373171752,1752889845338,-460.0,0.0001726,2]
[373171754,1752889845347,-460.0,0.0001726,2]
[373171756,1752889845357,-460.0,0.0001726,2]
[373171758,1752889845366,-460.0,0.0001726,2]
[373171760,1752889845375,-460.0,0.0001726,2]
[373171762,1752889845384,-460.0,0.0001726,2]
[373171764,1752889845394,-460.0,0.0001726,2]
[373171766,1752889845404,-460.0,0.0001726,2]
[373171768,1752889845413,-460.0,0.0001726,2]
[373171771,1752889845422,-460.0,0.0001726,2]
[373171773,1752889845431,-460.0,0.0001726,2]
[373171776,1752889845442,-460.0,0.0001726,2]
[373171778,1752889845451,-643.65,0.0001726,2]
[373171780,1752889845461,-460.0,0.0001726,2]
[373171782,1752889845470,-464.61916988,0.0001726,2]
[373171784,1752889845479,-460.0,0.0001726,2]
[373171786,1752889845489,-460.0,0.0001726,2]
[373171788,1752889845499,-460.0,0.0001726,2]
[373171790,1752889845508,-460.0,0.0001726,2]
[373171792,1752889845517,-460.0,0.0001726,2]
[373171794,1752889845526,-460.0,0.0001726,2]
[373171796,1752889845536,-460.0,0.0001726,2]
[373171798,1752889845546,-460.0,0.0001726,2]
[373171800,1752889845556,-460.0,0.0001726,2]
[373171802,1752889845566,-460.0,0.0001726,2]
[373171804,1752889845578,-460.0,0.0001726,2]
[373171806,1752889845588,-460.0,0.0001726,2]
[373171808,1752889845597,-460.0,0.0001726,2]
[373171810,1752889845607,-1048.66,0.0001726,2]
[373171812,1752889845617,-2112.61,0.0001726,2]
[373171814,1752889845626,-460.0,0.0001726,2]
[373171816,1752889845637,-460.0,0.0001726,2]
[373171818,1752889845648,-460.0,0.0001726,2]
[373171820,1752889845659,-460.0,0.0001726,2]
[373171822,1752889845669,-460.0,0.0001726,2]
[373171824,1752889845678,-460.0,0.0001726,2]
[373171825,1752889845687,-460.0,0.0001726,2]
[373171827,1752889845698,-460.0,0.0001726,2]
[373171830,1752889845707,-460.0,0.0001726,2]
[373171831,1752889845717,-1102.5,0.0001726,2]
[373171834,1752889845728,-460.0,0.0001726,2]
[373171836,1752889845740,-460.0,0.0001726,2]
[373171838,1752889845750,-460.0,0.0001726,2]
[373171841,1752889845760,-514.42,0.0001726,2]
[373171844,1752889845772,-652.43,0.0001726,2]
[373171847,1752889845781,-1428.9,0.0001726,2]
[373171848,1752889845790,-1641.4,0.0001726,2]
[373171850,1752889845800,-460.0,0.0001726,2]
[373171852,1752889845810,-460.0,0.0001726,2]
[373171855,1752889845819,-460.0,0.0001726,2]
[373171857,1752889845828,-460.0,0.0001726,2]
[373171859,1752889845838,-1213.09,0.0001726,2]
[373171860,1752889845847,-460.0,0.0001726,2]
[373171862,1752889845856,-460.0,0.0001726,2]
[373171865,1752889845866,-555.73,0.0001726,2]
[373171867,1752889845875,-460.0,0.0001726,2]
[373171869,1752889845885,-252.65842997,0.0001726,2]
[373171871,1752889845895,-460.0,0.0001726,2]
[373171873,1752889845906,-460.0,0.0001726,2]
[373171875,1752889845915,-460.0,0.0001726,2]
[373171877,1752889845925,-2991.77,0.0001726,2]
[373171879,1752889845934,-460.0,0.0001726,2]
[373171881,1752889845944,-1987.27,0.0001726,2]
[373171883,1752889845954,-460.0,0.0001726,2]
[373171885,1752889845964,-288.59685484,0.0001726,2]
[373171887,1752889845974,-460.0,0.0001726,2]
[373171889,1752889845984,-938.91,0.0001726,2]
[373171891,1752889845993,-235.69800794,0.0001726,2]
[373171893,1752889846003,-460.0,0.0001726,2]
[373171895,1752889846012,-518.30338123,0.0001726,2]
[373171897,1752889846021,-460.0,0.0001726,2]
[373171899,1752889846031,-1454.48,0.0001726,2]
[373171901,1752889846040,-488.63,0.0001726,2]
[373171903,1752889846050,-460.0,0.0001726,2]
[373171905,1752889846059,-460.0,0.0001726,2]
[373171907,1752889846068,-737.82,0.0001726,2]
[373171909,1752889846078,-460.32,0.0001726,2]
[373171911,1752889846088,-460.0,0.0001726,2]
[373171913,1752889846097,-460.0,0.0001726,2]
[373171915,1752889846107,-460.0,0.0001726,2]
[373171917,1752889846118,-967.13,0.0001726,2]
[373171919,1752889846128,-460.0,0.0001726,2]
[373171921,1752889846138,-3100.36,0.0001726,2]
[373171923,1752889846147,-460.0,0.0001726,2]
[373171925,1752889846158,-460.0,0.0001726,2]
[373171927,1752889846167,-467.53394974,0.0001726,2]
[373171929,1752889846177,-460.0,0.0001726,2]
[373171931,1752889846187,-1316.83,0.0001726,2]
[373171933,1752889846197,-460.0,0.0001726,2]
[373171935,1752889846207,-460.0,0.0001726,2]
[373171937,1752889846216,-460.0,0.0001726,2]
[373171939,1752889846226,-460.0,0.0001726,2]
[373171941,1752889846236,-460.0,0.0001726,2]
[373171943,1752889846245,-460.0,0.0001726,2]
[373171945,1752889846255,-460.0,0.0001726,2]
[373171947,1752889846266,-460.0,0.0001726,2]
[373171949,1752889846275,-460.0,0.0001726,2]
[373171951,1752889846285,-177.87789923,0.00017342,3]
[373171953,1752889846295,-500.0,0.00017396,2]
[373171956,1752889846305,-1557.93,0.000174,2]
[373171958,1752889846314,-460.0,0.00017534,2]
[373171959,1752889846326,-460.0,0.00017534,2]
[373171961,1752889846336,-460.0,0.00017534,2]
[373171964,1752889846348,-565.98929515,0.00017534,2]
[373171965,1752889846369,-624.98,0.00017534,2]
[373171967,1752889846392,-460.0,0.00017534,2]
[373171969,1752889846411,-474.11255076,0.00017534,2]
[373171971,1752889846421,-460.0,0.00017534,2]
[373171972,1752889846431,-460.0,0.00017534,2]
[373171973,1752889846441,-460.0,0.00017534,2]
[373171974,1752889846450,-460.0,0.00017534,2]
[373171975,1752889846460,-460.0,0.00017534,2]
[373171976,1752889846471,-460.0,0.00017534,2]
[373171977,1752889846481,-460.0,0.00017534,2]
[373171978,1752889846490,-460.0,0.00017534,2]
[373171979,1752889846500,-460.0,0.00017534,2]
[373171980,1752889846509,-498.88,0.00017534,2]
[373171981,1752889846519,-460.0,0.00017534,2]
[373171982,1752889846528,-460.0,0.00017534,2]
[373171983,1752889846538,-460.0,0.00017534,2]
[373171984,1752889846548,-460.0,0.00017534,2]
[373171985,1752889846558,-460.0,0.00017534,2]
[373171986,1752889846568,-460.0,0.00017534,2]
[373171987,1752889846582,-460.0,0.00017534,2]
[373171988,1752889846591,-460.0,0.00017534,2]
[373171989,1752889846601,-460.0,0.00017534,2]
[373171990,1752889846613,-460.0,0.00017534,2]
[373171991,1752889846623,-460.0,0.00017534,2]
[373171992,1752889846632,-460.0,0.00017534,2]
[373171993,1752889846642,-460.0,0.00017534,2]
[373171994,1752889846652,-460.0,0.00017534,2]
[373171995,1752889846662,-460.0,0.00017534,2]
[373171996,1752889846672,-460.0,0.00017534,2]
[373171997,1752889846681,-460.0,0.00017534,2]
[373171998,1752889846692,-460.0,0.00017534,2]
[373171999,1752889846702,-234.11569496,0.00017534,2]
[373172000,1752889846712,-460.0,0.00017534,2]
[373172001,1752889846721,-643.65,0.00017534,2]
[373172002,1752889846731,-460.0,0.00017534,2]
[373172003,1752889846741,-460.0,0.00017534,2]
[373172004,1752889846752,-460.0,0.00017534,2]
[373172005,1752889846762,-460.0,0.00017534,2]
[373172006,1752889846771,-460.0,0.00017534,2]
[373172007,1752889846782,-465.17679717,0.00017534,2]
[373172008,1752889846792,-460.0,0.00017534,2]
[373172010,1752889846812,-460.0,0.00017534,2]
[373172012,1752889846823,-460.0,0.00017534,2]
[373172014,1752889846833,-460.0,0.00017534,2]
[373172016,1752889846843,-460.0,0.00017534,2]
[373172018,1752889846852,-460.0,0.00017534,2]
[373172020,1752889846863,-460.0,0.00017534,2]
[373172023,1752889846874,-460.0,0.00017534,2]
[373172025,1752889846884,-1048.66,0.00017534,2]
[373172027,1752889846894,-2112.61,0.00017534,2]
[373172029,1752889846908,-460.0,0.00017534,2]
[373172031,1752889846918,-418.18023803,0.00017534,2]
[373172033,1752889846928,-460.0,0.00017534,2]
[373172035,1752889846938,-460.0,0.00017534,2]
[373172037,1752889846948,-460.0,0.00017534,2]
[373172040,1752889846958,-460.0,0.00017534,2]
[373172042,1752889846969,-460.0,0.00017534,2]
[373172043,1752889846978,-460.0,0.00017534,2]
[373172044,1752889846988,-460.0,0.00017534,2]
[373172045,1752889846998,-1102.5,0.00017534,2]
[373172046,1752889847009,-470.03296021,0.00017534,2]
[373172047,1752889847019,-460.0,0.00017534,2]
[373172048,1752889847029,-460.0,0.00017534,2]
[373172049,1752889847039,-514.42,0.00017534,2]
[373172050,1752889847050,-652.43,0.00017534,2]
[373172051,1752889847060,-1428.9,0.00017534,2]
[373172052,1752889847070,-1641.4,0.00017534,2]
[373172053,1752889847080,-460.0,0.00017534,2]
[373172054,1752889847091,-460.0,0.00017534,2]
[373172055,1752889847102,-460.0,0.00017534,2]
[373172056,1752889847112,-460.0,0.00017534,2]
[373172057,1752889847121,-1213.09,0.00017534,2]
[373172058,1752889847131,-460.0,0.00017534,2]
[373172059,1752889847141,-460.0,0.00017534,2]
[373172060,1752889847152,-555.73,0.00017534,2]
[373172061,1752889847162,-190.00884633,0.00017534,2]
[373172062,1752889847172,-460.0,0.00017534,2]
[373172063,1752889847182,-460.0,0.00017534,2]
[373172064,1752889847193,-460.0,0.00017534,2]
[373172065,1752889847203,-2991.77,0.00017534,2]
[373172066,1752889847212,-460.0,0.00017534,2]
[373172067,1752889847222,-1987.27,0.00017534,2]
[373172068,1752889847232,-460.0,0.00017534,2]
[373172069,1752889847243,-460.0,0.00017534,2]
[373172070,1752889847253,-938.91,0.00017534,2]
[373172071,1752889847262,-460.0,0.00017534,2]
[373172072,1752889847273,-460.0,0.00017534,2]
[373172073,1752889847283,-1454.48,0.00017534,2]
[373172074,1752889847292,-488.63,0.00017534,2]
[373172075,1752889847302,-460.0,0.00017534,2]
[373172076,1752889847312,-460.0,0.00017534,2]
[373172077,1752889847323,-737.82,0.00017534,2]
[373172078,1752889847332,-460.32,0.00017534,2]
[373172079,1752889847342,-460.0,0.00017534,2]
[373172080,1752889847352,-460.0,0.00017534,2]
[373172081,1752889847362,-967.13,0.00017534,2]
[373172082,1752889847372,-460.0,0.00017534,2]
[373172083,1752889847382,-3100.36,0.00017534,2]
[373172084,1752889847392,-460.0,0.00017534,2]
[373172085,1752889847404,-460.0,0.00017534,2]
[373172086,1752889847417,-460.0,0.00017534,2]
[373172087,1752889847428,-1316.83,0.00017534,2]
[373172088,1752889847438,-460.0,0.00017534,2]
[373172089,1752889847448,-460.0,0.00017534,2]
[373172090,1752889847457,-201.6991911,0.00017534,2]
[373172091,1752889847469,-460.0,0.00017534,2]
[373172092,1752889847479,-460.0,0.00017534,2]
[373172093,1752889847490,-469.98334508,0.00017534,2]
[373172094,1752889847500,-460.0,0.00017534,2]
[373172095,1752889847510,-460.0,0.00017534,2]
[373172096,1752889847520,-555.06778879,0.00017534,2]
[373172097,1752889847531,-500.0,0.00017549,2]
[373172098,1752889847541,-502.5133173,0.0001756,2]
[373172099,1752889847551,-384.34898903,0.00017619,2]
[373172100,1752889847562,-505.40972499,0.00017724,2]
[373172101,1752889847576,-500.44944029,0.00017731,2]
[373172102,1752889847587,-410.45934692,0.00017738,2]
[373172103,1752889847597,-1000.0,0.00017742,2]
[373172104,1752889847607,-505.7834431,0.00017742,2]
[373172105,1752889847619,-460.0,0.00017808,2]
[373172106,1752889847629,-609.72599939,0.00017808,2]
[373172107,1752889847640,-460.0,0.00017808,2]
[373172108,1752889847651,-624.98,0.00017808,2]
[373172109,1752889847661,-460.0,0.00017808,2]
[373172110,1752889847671,-460.0,0.00017808,2]
[373172111,1752889847681,-460.0,0.00017808,2]
[373172112,1752889847692,-460.0,0.00017808,2]
[373172113,1752889847703,-476.63075359,0.00017808,2]
[373172114,1752889847713,-460.0,0.00017808,2]
[373172115,1752889847724,-460.0,0.00017808,2]
[373172116,1752889847734,-460.0,0.00017808,2]
[373172118,1752889847744,-460.0,0.00017808,2]
[373172120,1752889847754,-460.0,0.00017808,2]
[373172122,1752889847765,-498.88,0.00017808,2]
[373172124,1752889847774,-331.28058231,0.00017808,2]
[373172126,1752889847784,-460.0,0.00017808,2]
[373172128,1752889847795,-460.0,0.00017808,2]
[373172130,1752889847805,-460.0,0.00017808,2]
[373172132,1752889847816,-460.0,0.00017808,2]
[373172135,1752889847826,-460.0,0.00017808,2]
[373172137,1752889847836,-468.06715672,0.00017808,2]
[373172139,1752889847846,-460.0,0.00017808,2]
[373172141,1752889847858,-460.0,0.00017808,2]
[373172143,1752889847868,-460.0,0.00017808,2]
[373172145,1752889847878,-460.0,0.00017808,2]
[373172147,1752889847888,-460.0,0.00017808,2]
[373172149,1752889847898,-460.0,0.00017808,2]
[373172151,1752889847908,-460.0,0.00017808,2]
[373172153,1752889847918,-469.49041497,0.00017808,2]
[373172155,1752889847928,-460.0,0.00017808,2]
[373172157,1752889847939,-460.0,0.00017808,2]
[373172160,1752889847949,-269.43289907,0.00017808,2]
[373172162,1752889847959,-474.64235238,0.00017808,2]
[373172164,1752889847970,-643.65,0.00017808,2]
[373172166,1752889847980,-460.0,0.00017808,2]
[373172168,1752889847990,-460.0,0.00017808,2]
[373172170,1752889847999,-460.0,0.00017808,2]
[373172172,1752889848010,-460.0,0.00017808,2]
[373172174,1752889848019,-460.0,0.00017808,2]
[373172176,1752889848030,-460.0,0.00017808,2]
[373172178,1752889848039,-460.0,0.00017808,2]
[373172180,1752889848048,-460.0,0.00017808,2]
[373172182,1752889848058,-460.0,0.00017808,2]
[373172184,1752889848067,-460.0,0.00017808,2]
[373172186,1752889848078,-460.0,0.00017808,2]
[373172188,1752889848088,-460.0,0.00017808,2]
[373172190,1752889848099,-460.0,0.00017808,2]
[373172192,1752889848109,-1048.66,0.00017808,2]
[373172194,1752889848120,-2112.61,0.00017808,2]
[373172197,1752889848130,-460.0,0.00017808,2]
[373172199,1752889848141,-460.0,0.00017808,2]
[373172201,1752889848150,-460.0,0.00017808,2]
[373172203,1752889848162,-460.0,0.00017808,2]
[373172205,1752889848173,-460.0,0.00017808,2]
[373172207,1752889848183,-460.0,0.00017808,2]
[373172209,1752889848193,-460.0,0.00017808,2]
[373172211,1752889848203,-460.0,0.00017808,2]
[373172213,1752889848214,-1102.5,0.00017808,2]
[373172215,1752889848224,-460.0,0.00017808,2]
[373172217,1752889848234,-460.0,0.00017808,2]
[373172220,1752889848244,-514.42,0.00017808,2]
[373172222,1752889848255,-652.43,0.00017808,2]
[373172224,1752889848265,-1428.9,0.00017808,2]
[373172226,1752889848275,-1641.4,0.00017808,2]
[373172228,1752889848287,-460.0,0.00017808,2]
[373172230,1752889848297,-460.0,0.00017808,2]
[373172232,1752889848308,-460.0,0.00017808,2]
[373172234,1752889848317,-460.0,0.00017808,2]
[373172236,1752889848327,-1213.09,0.00017808,2]
[373172238,1752889848338,-460.0,0.00017808,2]
[373172240,1752889848348,-460.0,0.00017808,2]
[373172242,1752889848358,-555.73,0.00017808,2]
[373172244,1752889848368,-460.0,0.00017808,2]
[373172247,1752889848380,-460.0,0.00017808,2]
[373172249,1752889848390,-460.0,0.00017808,2]
[373172251,1752889848401,-460.0,0.00017808,2]
[373172253,1752889848412,-2991.77,0.00017808,2]
[373172255,1752889848423,-1987.27,0.00017808,2]
[373172274,1752889848592,-460.0,0.00017808,2]
[373172276,1752889848602,-460.0,0.00017808,2]
[373172278,1752889848612,-938.91,0.00017808,2]
[373172280,1752889848622,-460.0,0.00017808,2]
[373172282,1752889848631,-482.5971525,0.00017808,2]
[373172284,1752889848640,-1454.48,0.00017808,2]
[373172286,1752889848650,-488.63,0.00017808,2]
[373172288,1752889848660,-460.0,0.00017808,2]
[373172290,1752889848669,-460.0,0.00017808,2]
[373172292,1752889848678,-737.82,0.00017808,2]
[373172294,1752889848687,-460.32,0.00017808,2]
[373172297,1752889848706,-460.0,0.00017808,2]
[373172299,1752889848718,-460.0,0.00017808,2]
[373172302,1752889848729,-967.13,0.00017808,2]
[373172304,1752889848739,-460.0,0.00017808,2]
[373172306,1752889848749,-3100.36,0.00017808,2]
[373172308,1752889848759,-460.0,0.00017808,2]
[373172310,1752889848770,-460.0,0.00017808,2]
[373172312,1752889848780,-460.0,0.00017808,2]